bitfinex-derivatives/quotes_SOLF0:USTF0_20260222
["timestamp","ask_amount","ask_price","bid_price","bid_amount"]
[1771750327650,9.07584796,84.919,84.881,3.86768703]
[1771750327853,9.07584796,84.918,84.881,3.86768703]
[1771750328147,2.48567424,84.92,84.881,3.86768703]
[1771750328456,9.07592617,84.919,84.881,3.86768703]
[1771750328750,9.07592617,84.918,84.881,3.86768703]
[1771750328955,2.48567424,84.92,84.881,3.86768703]
[1771750329154,9.07691441,84.919,84.881,3.86768703]
[1771750329347,9.07691441,84.918,84.881,3.86768703]
[1771750329551,2.85658941,84.92,84.881,3.86768703]
[1771750329756,9.07700307,84.919,84.881,3.86768703]
[1771750329957,9.07700307,84.918,84.881,3.86768703]
[1771750330156,2.85658941,84.92,84.881,3.86768703]
[1771750330357,9.07974737,84.919,84.881,3.86768703]
[1771750330556,9.07974737,84.918,84.881,3.86768703]
[1771750330749,2.85658941,84.92,84.881,3.86768703]
[1771750330953,9.07897561,84.919,84.881,3.86768703]
[1771750331255,2.85658941,84.92,84.881,3.86768703]
[1771750331457,9.07814166,84.919,84.881,3.86768703]
[1771750331752,2.85658941,84.92,84.881,3.86768703]
[1771750331957,9.07814118,84.919,84.881,3.86768703]
[1771750332259,2.85658941,84.92,84.881,3.86768703]
[1771750332460,9.07813882,84.919,84.881,3.86768703]
[1771750332658,9.07813882,84.918,84.881,3.86768703]
[1771750332960,2.85658941,84.92,84.881,3.86768703]
[1771750333260,9.07803122,84.919,84.881,3.86768703]
[1771750333461,9.07803122,84.918,84.881,3.86768703]
[1771750333658,2.48567424,84.92,84.881,3.86768703]
[1771750333858,9.07876292,84.919,84.881,3.86768703]
[1771750334060,9.07876292,84.918,84.881,3.86768703]
[1771750334360,9.07892107,84.917,84.881,3.86768703]
[1771750334560,2.48567424,84.92,84.881,3.86768703]
[1771750334761,9.07890551,84.919,84.881,3.86768703]
[1771750334956,9.07890551,84.918,84.881,3.86768703]
[1771750335156,9.07890551,84.917,84.881,3.86768703]
[1771750335455,0.3707997,84.928,84.881,3.86768703]
[1771750335653,0.37087749,84.926,84.881,3.86768703]
[1771750335852,274.60343941,84.929,84.881,3.86768703]
[1771750335853,0.37087749,84.924,84.881,3.86768703]
[1771750336051,9.07987912,84.923,84.881,3.86768703]
[1771750336252,9.07987912,84.922,84.881,3.86768703]
[1771750336455,9.07987912,84.921,84.881,3.86768703]
[1771750336657,9.07987912,84.92,84.881,3.86768703]
[1771750336953,9.07987912,84.919,84.881,3.86768703]
[1771750337158,9.07987912,84.918,84.881,3.86768703]
[1771750337456,9.07987912,84.917,84.881,3.86768703]
[1771750337654,9.07987912,84.916,84.881,3.86768703]
[1771750337859,0.37087749,84.924,84.881,3.86768703]
[1771750338065,0.3505178,84.922,84.881,3.86768703]
[1771750338261,0.35209655,84.919,84.881,3.86768703]
[1771750338457,0.35209655,84.917,84.881,3.86768703]
[1771750338665,9.08145577,84.916,84.881,3.86768703]
[1771750338864,0.35209655,84.917,84.881,3.86768703]
[1771750339065,9.08155156,84.916,84.881,3.86768703]
[1771750339362,0.35209655,84.917,84.881,3.86768703]
[1771750339567,9.08168101,84.916,84.881,3.86768703]
[1771750339766,0.35209655,84.917,84.881,3.86768703]
[1771750339969,9.08168429,84.916,84.881,3.86768703]
[1771750340169,0.35209655,84.917,84.881,3.86768703]
[1771750340371,9.08184065,84.916,84.881,3.86768703]
[1771750340573,0.35209655,84.917,84.881,3.86768703]
[1771750340772,9.08184065,84.916,84.881,3.86768703]
[1771750340967,0.35209655,84.917,84.881,3.86768703]
[1771750341166,9.08184065,84.916,84.881,3.86768703]
[1771750341363,0.35209655,84.917,84.881,3.86768703]
[1771750341564,9.08188,84.916,84.881,3.86768703]
[1771750341768,0.35209655,84.917,84.881,3.86768703]
[1771750341970,9.08188,84.916,84.881,3.86768703]
[1771750342171,0.35209655,84.917,84.881,3.86768703]
[1771750342371,9.08188735,84.916,84.881,3.86768703]
[1771750342575,0.35209655,84.917,84.881,3.86768703]
[1771750342774,9.08188735,84.916,84.881,3.86768703]
[1771750342966,0.35209655,84.917,84.881,3.86768703]
[1771750343274,9.08188735,84.916,84.881,3.86768703]
[1771750343466,0.35209655,84.917,84.881,3.86768703]
[1771750343670,9.08188544,84.916,84.881,3.86768703]
[1771750343873,0.35209655,84.917,84.881,3.86768703]
[1771750344074,9.08189201,84.916,84.881,3.86768703]
[1771750344372,0.35209655,84.917,84.881,3.86768703]
[1771750344570,9.08189264,84.916,84.881,3.86768703]
[1771750344773,0.35209655,84.917,84.881,3.86768703]
[1771750344975,9.08189264,84.916,84.881,3.86768703]
[1771750345172,0.35209655,84.917,84.881,3.86768703]
[1771750345377,9.08189328,84.916,84.881,3.86768703]
[1771750345577,0.35209655,84.917,84.877,3.92171884]
[1771750345778,0.35355475,84.915,84.877,3.92171884]
[1771750352178,2.48567424,84.92,84.88,3.92171884]
[1771750352383,0.26992505,84.925,84.88,3.92171884]
[1771750352684,9.08212164,84.924,84.881,3.92171884]
[1771750352983,9.08212164,84.923,84.881,3.92171884]
[1771750353185,9.08212164,84.922,84.881,3.92171884]
[1771750353384,9.08212164,84.921,84.881,3.92171884]
[1771750353583,0.26992505,84.925,84.881,3.92171884]
[1771750353785,9.0771348,84.924,84.881,3.92171884]
[1771750353985,9.0771348,84.923,84.881,3.92171884]
[1771750354185,9.0771348,84.922,84.881,3.92171884]
[1771750354386,9.0771348,84.921,84.881,3.92171884]
[1771750354688,0.26992505,84.925,84.881,3.92171884]
[1771750361492,9.07438141,84.924,84.881,3.92171884]
[1771750361697,9.07438141,84.923,84.881,3.92171884]
[1771750361894,9.07438141,84.922,84.881,3.92171884]
[1771750362095,0.26992505,84.925,84.881,3.92171884]
[1771750362396,9.07435275,84.924,84.881,3.92171884]
[1771750362587,9.07435275,84.923,84.881,3.92171884]
[1771750362788,9.07435275,84.922,84.881,3.92171884]
[1771750362998,0.26992505,84.925,84.881,3.92171884]
[1771750363294,9.0740839,84.924,84.881,3.92171884]
[1771750363496,9.0740839,84.923,84.881,3.92171884]
[1771750363794,9.0740839,84.922,84.881,3.92171884]
[1771750363995,0.26992505,84.925,84.881,3.92171884]
[1771750364196,9.30891292,84.924,84.881,3.92171884]
[1771750364395,9.07384606,84.923,84.881,3.92171884]
[1771750364695,9.07384606,84.922,84.881,3.92171884]
[1771750364886,0.23506686,84.924,84.881,3.92171884]
[1771750365087,9.30870308,84.923,84.881,3.92171884]
[1771750365292,9.07363622,84.922,84.881,3.92171884]
[1771750365592,0.23506686,84.923,84.881,3.92171884]
[1771750365789,9.07349664,84.922,84.881,3.92171884]
[1771750365996,0.23506686,84.923,84.881,3.92171884]
[1771750366193,9.07345073,84.922,84.881,3.92171884]
[1771750366399,0.23506686,84.923,84.881,3.92171884]
[1771750366698,9.07333476,84.922,84.881,3.92171884]
[1771750366901,0.23506686,84.923,84.881,3.92171884]
[1771750367100,9.07333476,84.922,84.881,3.92171884]
[1771750367296,0.23506686,84.923,84.881,3.92171884]
[1771750367501,9.07319222,84.922,84.881,3.92171884]
[1771750367701,0.23506686,84.923,84.881,3.92171884]
[1771750367903,9.07319222,84.922,84.881,3.92171884]
[1771750368201,0.23506686,84.923,84.881,3.92171884]
[1771750368400,9.07306776,84.922,84.881,3.92171884]
[1771750368700,0.23506686,84.923,84.881,3.92171884]
[1771750368902,9.07306776,84.922,84.881,3.92171884]
[1771750369201,0.23506686,84.923,84.881,3.92171884]
[1771750369402,9.07296038,84.922,84.881,3.92171884]
[1771750369603,0.23506686,84.923,84.881,3.92171884]
[1771750369803,9.07296038,84.922,84.881,3.92171884]
[1771750370101,0.23506686,84.923,84.881,3.92171884]
[1771750370301,9.07296038,84.922,84.881,3.92171884]
[1771750370599,0.23506686,84.923,84.881,3.92171884]
[1771750370800,9.07287136,84.922,84.881,3.92171884]
[1771750371000,0.23506686,84.923,84.881,3.92171884]
[1771750371201,9.07366983,84.922,84.881,3.92171884]
[1771750371402,0.23506686,84.923,84.881,3.92171884]
[1771750371905,2.485276,84.92,84.881,3.92171884]
[1771750374102,2.485276,84.92,84.882,10.606]
[1771750374404,2.485276,84.92,84.883,3.81154651]
[1771750374707,0.23506686,84.923,84.883,3.81154651]
[1771750377904,2.485276,84.92,84.883,3.81154651]
[1771750388710,2.85868173,84.92,84.883,3.81154651]
[1771750388908,0.37340573,84.919,84.883,3.81154651]
[1771750396815,9.07169733,84.918,84.883,3.81154651]
[1771750397117,0.37340573,84.919,84.883,3.81154651]
[1771750397316,9.07169358,84.918,84.883,3.81154651]
[1771750397615,9.07169358,84.917,84.883,3.81154651]
[1771750397815,0.37340573,84.919,84.883,3.81154651]
[1771750398012,9.07187817,84.918,84.883,3.81154651]
[1771750398212,9.07187817,84.917,84.883,3.81154651]
[1771750398406,0.37340573,84.919,84.883,3.81154651]
[1771750398615,9.07202105,84.918,84.883,3.81154651]
[1771750398916,0.37340573,84.919,84.883,3.81154651]
[1771750399117,9.07211439,84.918,84.883,3.81154651]
[1771750399317,0.37340573,84.919,84.883,3.81154651]
[1771750399515,9.07247944,84.918,84.883,3.81154651]
[1771750399717,0.37340573,84.919,84.883,3.81154651]
[1771750399918,9.07247944,84.918,84.883,3.81154651]
[1771750400212,0.37340573,84.919,84.883,3.81154651]
[1771750400412,9.07219056,84.918,84.883,3.81154651]
[1771750400609,0.37340573,84.919,84.883,3.81154651]
[1771750400813,9.07219056,84.918,84.883,3.81154651]
[1771750401120,0.37340573,84.919,84.883,3.81154651]
[1771750401320,9.0721329,84.918,84.883,3.81154651]
[1771750401521,0.37340573,84.919,84.883,3.81154651]
[1771750409522,0.38798452,84.909,84.876,3.98865359]
[1771750409827,2.485276,84.9,84.852,3.98865359]
[1771750410024,0.38798452,84.909,84.852,3.98865359]
[1771750410727,0.38798452,84.909,84.866,3.98865359]
[1771750419235,0.22121304,84.907,84.866,3.98865359]
[1771750424744,278.72998251,84.932,84.881,3.92034736]
[1771750425041,2.48643841,84.93,84.881,3.92034736]
[1771750425242,2.6502324,84.93,84.881,3.92034736]
[1771750425741,0.16379399,84.929,84.881,3.92034736]
[1771750440255,2.48643841,84.92,84.881,3.92034736]
[1771750441758,0.16379399,84.929,84.881,3.92034736]
[1771750444262,0.16379399,84.929,84.883,10.6059]
[1771750444462,0.16379399,84.929,84.884,3.90757409]
[1771750445365,0.16379399,84.929,84.887,3.90757409]
[1771750466287,9.05615075,84.928,84.887,3.90757409]
[1771750466488,0.16379399,84.929,84.887,3.90757409]
[1771750466688,9.05615075,84.928,84.887,3.90757409]
[1771750466888,0.16379399,84.929,84.887,3.90757409]
[1771750467191,9.05615075,84.928,84.887,3.90757409]
[1771750467392,9.05910196,84.927,84.887,3.90757409]
[1771750467591,0.16379399,84.929,84.887,3.90757409]
[1771750467787,9.05910193,84.928,84.887,3.90757409]
[1771750467987,9.05910193,84.927,84.887,3.90757409]
[1771750468293,0.16379399,84.929,84.887,3.90757409]
[1771750468493,9.05925325,84.928,84.887,3.90757409]
[1771750468699,9.05925325,84.927,84.887,3.90757409]
[1771750468893,9.05925325,84.926,84.887,3.90757409]
[1771750469095,9.05925325,84.925,84.887,3.90757409]
[1771750469295,9.07228771,84.924,84.887,3.90757409]
[1771750469495,9.07228771,84.923,84.887,3.90757409]
[1771750469698,9.07228771,84.922,84.887,3.90757409]
[1771750469997,0.16379399,84.929,84.887,3.90757409]
[1771750470197,9.07228771,84.928,84.887,3.90757409]
[1771750470397,9.07228771,84.927,84.887,3.90757409]
[1771750470695,9.07228771,84.926,84.887,3.90757409]
[1771750470895,9.07228771,84.925,84.887,3.90757409]
[1771750471097,9.07228771,84.924,84.887,3.90757409]
[1771750471296,9.07228771,84.923,84.887,3.90757409]
[1771750471496,9.07228771,84.922,84.887,3.90757409]
[1771750471694,0.16379399,84.929,84.887,3.90757409]
[1771750471895,9.07235177,84.928,84.887,3.90757409]
[1771750472095,9.07235177,84.927,84.887,3.90757409]
[1771750472294,9.07235177,84.926,84.887,3.90757409]
[1771750472497,9.07235177,84.925,84.887,3.90757409]
[1771750472688,9.07235177,84.924,84.887,3.90757409]
[1771750472888,9.07235177,84.923,84.887,3.90757409]
[1771750473089,9.07235177,84.922,84.887,3.90757409]
[1771750473389,0.16379399,84.929,84.887,3.90757409]
[1771750473591,9.06475756,84.928,84.887,3.90757409]
[1771750473800,9.06475756,84.927,84.887,3.90757409]
[1771750473994,9.06475756,84.926,84.887,3.90757409]
[1771750474196,9.06475756,84.925,84.887,3.90757409]
[1771750474395,9.06475756,84.924,84.887,3.90757409]
[1771750474594,9.06475756,84.923,84.887,3.90757409]
[1771750474791,9.06475756,84.922,84.887,3.90757409]
[1771750475099,0.16379399,84.929,84.887,3.90757409]
[1771750475397,9.06227698,84.928,84.887,3.90757409]
[1771750475600,9.06227698,84.927,84.887,3.90757409]
[1771750475800,9.06227698,84.926,84.887,3.90757409]
[1771750475995,9.06227698,84.925,84.887,3.90757409]
[1771750476300,9.06227698,84.924,84.887,3.90757409]
[1771750476502,9.06227698,84.923,84.887,3.90757409]
[1771750476697,9.06227698,84.922,84.887,3.90757409]
[1771750476898,0.16379399,84.929,84.887,3.90757409]
[1771750477101,9.06278556,84.928,84.887,3.90757409]
[1771750477302,9.06278556,84.927,84.887,3.90757409]
[1771750477497,9.06278556,84.926,84.887,3.90757409]
[1771750477702,9.06278556,84.925,84.887,3.90757409]
[1771750477902,9.06278556,84.924,84.887,3.90757409]
[1771750478101,9.06278556,84.923,84.887,3.90757409]
[1771750478295,9.06278556,84.922,84.887,3.90757409]
[1771750478499,0.16379399,84.929,84.887,3.90757409]
[1771750478798,9.06067849,84.928,84.887,3.90757409]
[1771750479096,9.06067849,84.927,84.887,3.90757409]
[1771750479296,9.06067849,84.926,84.887,3.90757409]
[1771750479501,9.06067849,84.925,84.887,3.90757409]
[1771750479703,9.06067849,84.924,84.887,3.90757409]
[1771750479902,9.06067849,84.923,84.887,3.90757409]
[1771750480103,9.06067849,84.922,84.887,3.90757409]
[1771750480303,0.16379399,84.929,84.887,3.90757409]
[1771750480503,9.06080641,84.928,84.887,3.90757409]
[1771750480704,9.06080641,84.927,84.887,3.90757409]
[1771750480907,9.06080641,84.926,84.887,3.90757409]
[1771750481109,9.06080641,84.925,84.887,3.90757409]
[1771750481310,9.06080641,84.924,84.887,3.90757409]
[1771750481507,9.06080641,84.923,84.887,3.90757409]
[1771750481712,0.16379399,84.929,84.887,3.90757409]
[1771750482014,9.06083611,84.928,84.887,3.90757409]
[1771750482310,9.06083611,84.927,84.887,3.90757409]
[1771750482510,9.06083611,84.926,84.887,3.90757409]
[1771750482710,9.06083611,84.925,84.887,3.90757409]
[1771750482911,9.06083611,84.924,84.887,3.90757409]
[1771750483104,9.06083611,84.923,84.887,3.90757409]
[1771750483303,0.16379399,84.929,84.887,3.90757409]
[1771750483508,9.06087246,84.928,84.887,3.90757409]
[1771750483701,9.06087246,84.927,84.887,3.90757409]
[1771750483909,9.06087246,84.926,84.887,3.90757409]
[1771750484109,9.06087246,84.925,84.887,3.90757409]
[1771750484409,9.06087246,84.924,84.887,3.90757409]
[1771750484606,9.06087246,84.923,84.887,3.90757409]
[1771750484807,0.16379399,84.929,84.887,3.90757409]
[1771750485009,9.06076543,84.928,84.887,3.90757409]
[1771750485211,9.06076543,84.927,84.887,3.90757409]
[1771750485403,9.06076543,84.926,84.887,3.90757409]
[1771750485607,9.06076543,84.925,84.887,3.90757409]
[1771750485808,9.06076543,84.924,84.887,3.90757409]
[1771750486013,9.06076543,84.923,84.887,3.90757409]
[1771750486214,0.16379399,84.929,84.887,3.90757409]
[1771750486415,9.06061251,84.928,84.887,3.90757409]
[1771750486711,9.06061251,84.927,84.887,3.90757409]
[1771750486915,9.06061251,84.926,84.887,3.90757409]
[1771750487111,9.06061251,84.925,84.887,3.90757409]
[1771750487313,9.06061251,84.924,84.887,3.90757409]
[1771750487512,9.06061251,84.923,84.887,3.90757409]
[1771750487714,0.16379399,84.929,84.887,3.90757409]
[1771750487915,9.22483955,84.928,84.887,3.90757409]
[1771750488115,9.06054953,84.927,84.887,3.90757409]
[1771750488312,9.06054953,84.926,84.887,3.90757409]
[1771750488507,9.06054953,84.925,84.887,3.90757409]
[1771750488811,9.06054953,84.924,84.887,3.90757409]
[1771750489011,9.06054953,84.923,84.887,3.90757409]
[1771750489306,0.16429002,84.928,84.887,3.90757409]
[1771750489506,9.06044961,84.927,84.887,3.90757409]
[1771750489707,9.06044961,84.926,84.887,3.90757409]
[1771750490018,174.58938493,84.939,84.894,3.91129942]
[1771750490218,2.48536732,84.93,84.894,3.91129942]
[1771750490720,2.48536732,84.93,84.901,3.9099214]
[1771750492721,0.18210383,84.938,84.901,3.9099214]
[1771750492918,9.05501837,84.937,84.901,3.9099214]
[1771750493118,9.05501837,84.936,84.901,3.9099214]
[1771750493420,9.05501837,84.935,84.901,3.9099214]
[1771750493625,0.17516404,84.937,84.901,3.9099214]
[1771750493824,9.05383381,84.936,84.901,3.9099214]
[1771750494121,9.05383381,84.935,84.901,3.9099214]
[1771750494318,0.17516404,84.937,84.901,3.9099214]
[1771750494524,9.05291069,84.936,84.901,3.9099214]
[1771750494714,9.05291069,84.935,84.901,3.9099214]
[1771750494918,0.17516404,84.937,84.901,3.9099214]
[1771750495116,9.05291116,84.936,84.901,3.9099214]
[1771750495424,0.17516404,84.937,84.901,3.9099214]
[1771750495625,9.05211418,84.936,84.901,3.9099214]
[1771750495825,0.17516404,84.937,84.901,3.9099214]
[1771750496124,9.05210581,84.936,84.901,3.9099214]
[1771750496325,0.17516404,84.937,84.901,3.9099214]
[1771750496526,9.05140534,84.936,84.901,3.9099214]
[1771750496716,0.17516404,84.937,84.901,3.9099214]
[1771750496916,9.05140534,84.936,84.901,3.9099214]
[1771750497120,0.17516404,84.937,84.901,3.9099214]
[1771750497423,9.05079184,84.936,84.901,3.9099214]
[1771750497617,0.17516404,84.937,84.901,3.9099214]
[1771750497820,9.0507918,84.936,84.901,3.9099214]
[1771750498117,0.17516404,84.937,84.901,3.9099214]
[1771750498321,9.05024503,84.936,84.901,3.9099214]
[1771750498520,0.17516404,84.937,84.901,3.9099214]
[1771750498723,9.05024503,84.936,84.901,3.9099214]
[1771750498925,0.17516404,84.937,84.901,3.9099214]
[1771750499524,174.58938493,84.939,84.869,119.17491736]
[1771750499525,0.17071491,84.919,84.889,3.91561586]
[1771750503539,0.19977641,84.909,84.877,3.90108511]
[1771750503839,174.58938493,84.939,84.877,3.90108511]
[1771750503840,0.19977641,84.919,84.877,3.90108511]
[1771750504033,9.05298415,84.918,84.877,3.90108511]
[1771750504231,9.05298415,84.917,84.877,3.90108511]
[1771750504537,2.48536732,84.92,84.877,3.90108511]
[1771750504538,0.20005277,84.918,84.877,3.90108511]
[1771750504739,9.25173866,84.917,84.877,3.90108511]
[1771750504939,0.20005277,84.917,84.877,3.90108511]
[1771750506438,174.79595521,84.939,84.881,3.89768818]
[1771750506640,9.05049771,84.938,84.891,3.89768818]
[1771750506942,9.05049771,84.937,84.891,3.89768818]
[1771750507141,9.05049771,84.936,84.891,3.89768818]
[1771750507343,9.05049771,84.935,84.891,3.89768818]
[1771750507544,10.6001,84.931,84.891,3.89768818]
[1771750508245,174.58938493,84.939,84.891,3.89768818]
[1771750508445,9.05103106,84.938,84.891,3.89768818]
[1771750508744,174.58938493,84.939,84.891,3.89768818]
[1771750508745,9.05103106,84.937,84.891,3.89768818]
[1771750508936,9.05103106,84.936,84.891,3.89768818]
[1771750509135,174.58938493,84.939,84.891,3.89768818]
[1771750509335,9.04953189,84.938,84.891,3.89768818]
[1771750509640,9.04953189,84.937,84.891,3.89768818]
[1771750509840,9.04953189,84.936,84.891,3.89768818]
[1771750510140,174.58938493,84.939,84.891,3.89768818]
[1771750510639,9.049382,84.938,84.891,3.89768818]
[1771750510944,9.049382,84.937,84.891,3.89768818]
[1771750511144,9.049382,84.936,84.891,3.89768818]
[1771750511347,174.58938493,84.939,84.891,3.89768818]
[1771750511647,9.04925558,84.938,84.891,3.89768818]
[1771750511949,9.04925558,84.937,84.891,3.89768818]
[1771750512245,9.04925558,84.936,84.891,3.89768818]
[1771750512446,174.58938493,84.939,84.891,3.89768818]
[1771750512647,9.0491205,84.938,84.891,3.89768818]
[1771750512848,9.0491205,84.937,84.891,3.89768818]
[1771750513048,9.0491205,84.936,84.891,3.89768818]
[1771750513347,174.58938493,84.939,84.891,3.89768818]
[1771750513548,9.04900368,84.938,84.891,3.89768818]
[1771750513743,9.04900368,84.937,84.891,3.89768818]
[1771750514038,9.04900368,84.936,84.891,3.89768818]
[1771750514242,174.58938493,84.939,84.893,10.6047]
[1771750514442,9.04889594,84.938,84.894,3.95504769]
[1771750514637,9.04889594,84.937,84.894,3.95504769]
[1771750514847,9.04889594,84.936,84.894,3.95504769]
[1771750515048,174.58938493,84.939,84.894,3.95504769]
[1771750515239,9.0487031,84.938,84.894,3.95504769]
[1771750515444,9.0487031,84.937,84.894,3.95504769]
[1771750515640,9.0487031,84.936,84.894,3.95504769]
[1771750515844,174.58938493,84.939,84.894,3.95504769]
[1771750516044,9.04881092,84.938,84.894,3.95504769]
[1771750516245,9.04881092,84.937,84.894,3.95504769]
[1771750516541,174.58938493,84.939,84.894,3.95504769]
[1771750516744,9.04873047,84.938,84.894,3.95504769]
[1771750516939,9.04873047,84.937,84.894,3.95504769]
[1771750517144,174.58938493,84.939,84.896,3.95504769]
[1771750517345,9.04866379,84.938,84.896,3.95504769]
[1771750517547,9.04866379,84.937,84.896,3.95504769]
[1771750517748,174.58938493,84.939,84.896,3.95504769]
[1771750517944,9.04866808,84.938,84.896,3.95504769]
[1771750518145,9.04866808,84.937,84.896,3.95504769]
[1771750518348,174.58938493,84.939,84.896,3.95504769]
[1771750518648,9.04861223,84.938,84.896,3.95504769]
[1771750518844,9.04850464,84.937,84.896,3.95504769]
[1771750519046,3.9717931,84.959,84.911,3.95504769]
[1771750520750,3.9717931,84.959,84.914,3.95504769]
[1771750521645,3.9717931,84.959,84.916,3.95504769]
[1771750522358,2.48536732,84.98,84.927,3.95504769]
[1771750522651,2.48536732,84.98,84.931,3.95504769]
[1771750523252,3.9717931,84.983,84.931,3.95504769]
[1771750523749,3.9717931,84.983,84.941,3.95504769]
[1771750523951,3.9717931,84.995,84.951,3.95504769]
[1771750524645,3.9717931,84.995,84.951,14.55244769]
[1771750524850,3.9717931,84.995,84.952,3.95504769]
[1771750525649,3.9717931,84.995,84.953,10.5972]
[1771750525852,163.51150192,85.032,84.971,3.95504769]
[1771750525853,3.9717931,85.007,84.971,3.95504769]
[1771750527750,10.5885,85.023,84.971,3.95504769]
[1771750528054,3.9717931,84.999,84.941,3.95504769]
[1771750528254,3.9717931,84.989,84.941,3.95504769]
[1771750529652,3.9717931,84.989,84.951,3.95504769]
[1771750530754,3.9717931,84.989,84.953,3.95504769]
[1771750531952,3.9717931,84.989,84.952,10.5973]
[1771750538361,3.9717931,84.989,84.943,3.84263972]
[1771750542067,3.72505733,84.979,84.934,3.84263972]
[1771750542261,3.72505733,84.969,84.934,3.84263972]
[1771750542764,3.72505733,84.969,84.93,197.95721441]
[1771750543365,3.72505733,84.969,84.93,187.35721441]
[1771750544975,3.72505733,84.969,84.931,3.84263972]
[1771750551575,3.72505733,84.967,84.911,3.84263972]
[1771750551775,3.72505733,84.967,84.921,3.84263972]
[1771750552576,3.72505733,84.967,84.891,192.27090932]
[1771750552577,3.72505733,84.959,84.901,3.84263972]
[1771750552876,3.72505733,84.949,84.901,3.84263972]
[1771750561989,3.72505733,84.949,84.911,3.84263972]
[1771750562285,3.72505733,84.959,84.911,3.84263972]
[1771750562890,3.72505733,84.959,84.921,3.84263972]
[1771750591712,12.97132317,84.958,84.921,3.84263972]
[1771750592011,9.02861883,84.957,84.921,3.84263972]
[1771750592212,3.94270434,84.958,84.921,3.84263972]
[1771750592413,9.02955737,84.957,84.921,3.84263972]
[1771750592611,3.94270434,84.958,84.921,3.84263972]
[1771750592911,9.02955737,84.957,84.921,3.84263972]
[1771750593111,3.94270434,84.958,84.921,3.84263972]
[1771750593312,9.03140374,84.957,84.921,3.84263972]
[1771750593511,3.94270434,84.958,84.921,3.84263972]
[1771750593713,9.00889777,84.957,84.921,3.84263972]
[1771750593915,3.94270434,84.958,84.921,3.84263972]
[1771750594113,9.00889777,84.957,84.921,3.84263972]
[1771750594414,9.00889777,84.956,84.921,3.84263972]
[1771750594609,3.94270434,84.958,84.921,3.84263972]
[1771750594914,9.01019269,84.957,84.921,3.84263972]
[1771750595114,9.01019269,84.956,84.921,3.84263972]
[1771750595412,3.94270434,84.958,84.921,3.84263972]
[1771750595616,9.01197519,84.957,84.921,3.84263972]
[1771750595806,9.01197519,84.956,84.921,3.84263972]
[1771750596105,3.94270434,84.958,84.921,3.84263972]
[1771750596415,9.01430747,84.957,84.921,3.84263972]
[1771750596613,9.01430747,84.956,84.921,3.84263972]
[1771750596813,9.01430747,84.955,84.921,3.84263972]
[1771750597013,3.94270434,84.958,84.921,3.84263972]
[1771750597215,9.01437105,84.957,84.921,3.84263972]
[1771750597515,9.01437105,84.956,84.921,3.84263972]
[1771750597714,9.01437105,84.955,84.921,3.84263972]
[1771750597914,9.01437105,84.954,84.921,3.84263972]
[1771750598115,3.94270434,84.957,84.921,3.84263972]
[1771750598314,3.94264031,84.955,84.921,3.84263972]
[1771750598515,9.01577421,84.954,84.921,3.84263972]
[1771750598810,3.94264031,84.955,84.921,3.84263972]
[1771750599017,9.01494572,84.954,84.921,3.84263972]
[1771750599216,3.94264031,84.955,84.921,3.84263972]
[1771750599417,9.0150604,84.954,84.921,3.84263972]
[1771750599608,3.94264031,84.955,84.921,3.84263972]
[1771750599813,9.01506087,84.954,84.921,3.84263972]
[1771750600014,3.94264031,84.955,84.921,3.84263972]
[1771750600215,9.01509937,84.954,84.921,3.84263972]
[1771750600514,3.94264031,84.955,84.921,3.84263972]
[1771750600715,9.01511691,84.954,84.921,3.84263972]
[1771750600912,3.94264031,84.955,84.921,3.84263972]
[1771750601117,9.01511691,84.954,84.921,3.84263972]
[1771750601321,3.94264031,84.955,84.921,3.84263972]
[1771750601517,9.01516853,84.954,84.921,3.84263972]
[1771750601722,9.01516853,84.953,84.921,3.84263972]
[1771750601922,9.01516853,84.952,84.921,3.84263972]
[1771750602125,3.94264031,84.955,84.921,3.84263972]
[1771750602424,9.01521419,84.954,84.921,3.84263972]
[1771750602624,9.01521419,84.953,84.921,3.84263972]
[1771750602819,9.01521419,84.952,84.921,3.84263972]
[1771750603015,3.94264031,84.955,84.921,3.84263972]
[1771750603215,9.01525154,84.954,84.921,3.84263972]
[1771750603415,9.01525154,84.953,84.921,3.84263972]
[1771750603622,9.01525154,84.952,84.921,3.84263972]
[1771750603824,3.94264031,84.955,84.921,3.84263972]
[1771750604018,9.0152577,84.954,84.921,3.84263972]
[1771750604217,9.0152577,84.953,84.921,3.84263972]
[1771750604417,9.0152577,84.952,84.921,3.84263972]
[1771750604618,3.94264031,84.955,84.921,3.84263972]
[1771750604818,9.01529069,84.954,84.921,3.84263972]
[1771750605024,9.01529069,84.953,84.921,3.84263972]
[1771750605225,9.01529069,84.952,84.921,3.84263972]
[1771750605424,3.94264031,84.955,84.921,3.84263972]
[1771750605626,9.01531991,84.954,84.921,3.84263972]
[1771750605826,9.01531991,84.953,84.921,3.84263972]
[1771750606125,9.01531991,84.952,84.921,3.84263972]
[1771750606325,3.94264031,84.955,84.921,3.84263972]
[1771750606525,9.01534553,84.954,84.921,3.84263972]
[1771750606725,9.01534553,84.953,84.921,3.84263972]
[1771750606925,9.01534553,84.952,84.921,3.84263972]
[1771750607128,3.94264031,84.955,84.921,3.84263972]
[1771750607329,9.01537335,84.954,84.921,3.84263972]
[1771750607526,9.01537335,84.953,84.921,3.84263972]
[1771750607825,9.01537335,84.952,84.921,3.84263972]